bitfinex-derivatives/quotes_ETHF0:USTF0_20241230
["timestamp","ask_amount","ask_price","bid_price","bid_amount"]
[1735579213285,3.2078,3337.7,3337.6,4.98836872]
[1735579213486,3.2078,3337.7,3337.6,0.30017]
[1735579214382,5.48813449,3337.7,3337.3,1.267]
[1735579214579,2.58051449,3337.4,3337.3,1.267]
[1735579214788,2.58051449,3337.4,3337.3,1.56719]
[1735579215382,2.28033449,3337.4,3337.3,1.56719]
[1735579215583,0.8944,3337.6,3337.5,0.30017]
[1735579215787,0.30018,3337.4,3337.3,1.56719]
[1735579216290,0.8944,3337.6,3337.3,1.267]
[1735579216480,0.4499,3337.6,3337.5,0.30017]
[1735579218484,0.4414,3338.0,3337.9,0.30014]
[1735579218682,0.4465,3338.2,3337.8,3.2078]
[1735579218884,0.4465,3338.2,3338.1,0.30012]
[1735579219188,0.4178,3338.4,3337.8,3.2078]
[1735579219488,0.4178,3338.4,3337.3,1.267]
[1735579219489,0.4178,3338.4,3338.3,0.3001]
[1735579220385,3.47679449,3338.9,3338.8,0.30006]
[1735579220684,0.4426,3338.9,3338.8,0.30006]
[1735579222493,0.4178,3339.3,3338.8,0.30006]
[1735579222687,0.4178,3339.3,3339.2,0.30002]
[1735579227493,3.46133449,3339.5,3339.1,3.2078]
[1735579227494,0.4272,3339.5,3339.4,0.3]
[1735579227993,0.4196,3340.0,3339.9,0.29996]
[1735579228194,0.8359,3340.0,3339.9,0.29996]
[1735579228687,0.4163,3340.0,3339.9,0.29996]
[1735579228886,0.4163,3340.0,3339.9,1.56596]
[1735579229093,0.4163,3340.0,3339.9,4.77376]
[1735579231189,0.4545,3340.4,3340.3,0.29992]
[1735579231391,0.4313,3340.8,3340.5,0.29991]
[1735579231392,0.4522,3340.6,3340.5,0.29991]
[1735579235593,0.4381,3340.9,3340.8,0.29988]
[1735579236292,0.4381,3340.9,3340.8,3.50768]
[1735579238394,0.4534,3341.2,3341.1,0.29985]
[1735579238598,0.8805,3341.2,3341.1,0.29985]
[1735579238898,0.8805,3341.2,3340.8,3.2078]
[1735579239094,0.29985,3341.1,3340.8,3.2078]
[1735579239294,0.29985,3341.1,3341.0,0.29986]
[1735579239789,0.8805,3341.2,3340.8,3.2078]
[1735579240101,0.8805,3341.2,3341.1,0.29985]
[1735579243696,0.71853,3341.3,3340.8,3.95749]
[1735579243892,0.71853,3341.3,3341.2,0.29984]
[1735579244092,0.4187,3341.3,3341.2,0.29984]
[1735579244295,0.4187,3341.3,3340.8,3.95749]
[1735579244296,2.69903449,3341.3,3340.8,3.2078]
[1735579244497,0.29985,3341.2,3341.1,0.29984]
[1735579245302,5.90683449,3341.3,3341.2,0.29984]
[1735579245303,3.92634,3341.3,3341.2,0.29984]
[1735579245701,3.6265,3341.3,3341.2,0.29984]
[1735579247100,0.4187,3341.3,3341.2,0.29984]
[1735579247500,4.0739,3341.8,3341.7,0.2998]
[1735579247799,4.37369,3341.8,3341.7,0.2998]
[1735579248101,4.0739,3341.8,3341.7,0.2998]
[1735579249205,0.8661,3341.8,3341.7,0.2998]
[1735579249404,3.2078,3342.2,3341.4,0.74955]
[1735579249405,3.2078,3342.7,3342.5,0.29972]
[1735579249606,1.2973,3342.6,3341.7,0.7495]
[1735579249798,0.29976,3342.2,3342.1,0.29975]
[1735579250403,0.29975,3342.3,3342.2,0.29974]
[1735579250902,1.59703,3342.6,3342.5,0.29973]
[1735579251304,1.2973,3342.6,3342.5,0.29973]
[1735579251809,0.8543,3342.6,3342.5,0.29973]
[1735579252504,0.424,3342.6,3342.5,0.29973]
[1735579252906,0.4394,3342.9,3342.8,0.2997]
[1735579253109,0.8937,3342.9,3342.8,0.2997]
[1735579254509,1.19339,3342.9,3342.8,0.2997]
[1735579255300,0.2997,3342.8,3342.7,0.2997]
[1735579255607,0.29972,3342.6,3342.5,1.56472]
[1735579255911,0.29971,3342.7,3342.6,0.29971]
[1735579256106,0.8937,3342.9,3342.3,4.4728]
[1735579256612,0.29971,3342.7,3342.6,0.29971]
[1735579256907,0.29975,3342.3,3342.2,0.29975]
[1735579257101,0.29975,3342.2,3342.1,1.56376]
[1735579257404,0.75095,3342.2,3342.1,1.56376]
[1735579257600,0.75095,3342.2,3341.5,3.2078]
[1735579257601,0.4512,3342.2,3341.5,3.2078]
[1735579257806,0.29981,3341.6,3341.5,3.2078]
[1735579258002,0.2998,3341.7,3341.6,0.2998]
[1735579258213,0.4203,3342.6,3342.5,0.29973]
[1735579259302,0.4203,3342.6,3342.4,1.264]
[1735579259303,3.2078,3342.7,3342.4,1.264]
[1735579259515,3.2078,3342.7,3342.6,0.29972]
[1735579260514,0.4512,3342.9,3342.8,0.2997]
[1735579261106,0.4512,3342.9,3342.8,3.5075]
[1735579262805,0.75089,3342.9,3342.8,3.5075]
[1735579263110,0.75089,3342.9,3342.8,3.2078]
[1735579263500,0.75089,3342.9,3342.8,3.5075]
[1735579264518,0.75089,3342.9,3342.8,3.50550055]
[1735579265217,0.4512,3342.9,3342.8,3.50550055]
[1735579266309,0.4399,3343.1,3342.8,3.50550055]
[1735579266310,0.4181,3343.2,3343.1,0.29967]
[1735579268811,0.4181,3343.2,3342.8,3.95504055]
[1735579268812,0.4391,3343.3,3343.2,0.29966]
[1735579269115,0.4391,3343.3,3343.2,3.50746]
[1735579270512,0.4391,3343.3,3343.2,4.77146]
[1735579272219,0.73875,3343.3,3343.2,3.50746]
[1735579272422,0.4391,3343.3,3343.2,3.50746]
[1735579273314,0.4518,3343.6,3343.5,0.29964]
[1735579275920,0.75143,3343.6,3343.5,0.29964]
[1735579276113,0.29965,3343.4,3343.3,0.29965]
[1735579277110,0.29964,3343.5,3343.4,0.29964]
[1735579278223,0.75143,3343.6,3343.5,0.29964]
[1735579279920,0.29965,3343.5,3343.4,0.29964]
[1735579280125,0.29965,3343.3,3343.2,3.50745]
[1735579280719,2.28033449,3343.3,3342.8,3.2078]
[1735579280913,0.4518,3343.6,3342.8,0.29969]
[1735579280914,0.29969,3342.9,3342.8,0.29969]
[1735579281127,0.29971,3342.8,3342.7,0.2997]
[1735579281327,0.29972,3342.7,3342.6,0.29972]
[1735579281625,3.00005449,3342.7,3342.6,0.29972]
[1735579281823,0.71972,3342.7,3342.6,0.29972]
[1735579282322,0.42,3342.7,3342.6,0.29972]
[1735579282823,0.71971,3342.7,3342.6,0.29972]
[1735579284018,0.42,3342.7,3342.4,3.2078]
[1735579284214,0.29973,3342.5,3342.4,3.50753]
[1735579284715,0.75732,3342.6,3342.5,0.29973]
[1735579286024,0.29973,3342.5,3342.4,3.2078]
[1735579286427,0.4576,3342.6,3341.9,3.2078]
[1735579286621,0.29977,3342.0,3341.9,3.2078]
[1735579287019,0.29982,3341.5,3341.4,3.2078]
[1735579288220,0.29982,3341.5,3341.4,3.50762]
[1735579288419,0.29982,3341.5,3341.4,3.2078]
[1735579290723,0.29982,3341.5,3341.4,3.50762]
[1735579290920,0.29981,3341.6,3341.5,0.29981]
[1735579292221,0.456,3341.9,3341.4,3.2078]
[1735579292427,0.29982,3341.5,3341.4,3.50762]
[1735579292622,0.29982,3341.5,3341.4,0.29982]
[1735579292822,0.29983,3341.4,3341.3,0.29983]
[1735579293325,0.29982,3341.5,3341.4,0.29982]
[1735579293722,0.456,3341.9,3341.0,5.3281]
[1735579293919,0.456,3341.9,3341.4,0.29982]
[1735579294219,0.29982,3341.5,3341.4,0.29982]
[1735579294825,0.456,3341.9,3341.0,3.2078]
[1735579294826,2.930035,3341.7,3341.0,3.2078]
[1735579295028,2.930035,3341.7,3341.0,3.50765]
[1735579295029,0.29985,3341.1,3341.0,3.50765]
[1735579295216,0.29985,3341.2,3341.1,0.29985]
[1735579296121,0.29985,3341.2,3341.0,3.2078]
[1735579296431,0.29985,3341.1,3341.0,3.50765]
[1735579296919,0.4498,3341.3,3341.1,0.29984]
[1735579296920,0.29985,3341.2,3341.1,0.29984]
[1735579297232,0.74964,3341.3,3341.2,0.29984]
[1735579299028,0.29985,3341.2,3341.1,0.29985]
[1735579299526,0.29985,3341.2,3341.1,41.09985]
[1735579300122,0.72803,3341.4,3341.3,0.29983]
[1735579300322,0.29984,3341.3,3341.2,0.29984]
[1735579301131,0.4282,3341.4,3341.1,40.8]
[1735579301439,0.72803,3341.4,3341.3,0.29983]
[1735579301728,0.29984,3341.3,3341.2,0.29984]
[1735579302521,0.29985,3341.2,3341.1,0.29985]
[1735579302731,0.4282,3341.4,3341.0,3.50766]
[1735579302732,0.29985,3341.1,3341.0,3.50766]
[1735579304025,0.29985,3341.1,3341.0,3.2078]
[1735579304223,2.930035,3341.3,3340.8,0.29988]
[1735579304224,0.29987,3340.9,3340.8,0.29988]
[1735579304428,0.29987,3341.0,3340.9,0.29986]
[1735579304825,1.17778,3341.4,3340.5,4.4718]
[1735579305030,0.29986,3341.1,3341.0,0.29985]
[1735579305631,0.29986,3341.0,3340.9,3.50767]
[1735579307129,0.4282,3341.4,3341.1,0.29984]
[1735579307130,0.29986,3341.2,3341.1,0.29984]
[1735579307728,0.29986,3341.0,3340.9,3.2078]
[1735579307935,0.29986,3341.0,3340.9,3.50767]
[1735579308635,0.29984,3341.3,3341.2,0.29983]
[1735579309137,0.4282,3341.4,3340.9,3.2078]
[1735579309138,0.72803,3341.4,3341.3,0.29983]
[1735579309340,0.29985,3341.1,3341.0,0.29985]
[1735579309836,0.29984,3341.3,3341.2,0.29983]
[1735579310038,0.4282,3341.4,3341.3,0.29983]
[1735579310039,0.72803,3341.4,3341.3,0.29983]
[1735579310728,0.4282,3341.4,3341.3,0.29983]
[1735579311237,0.4352,3341.5,3341.4,0.29982]
[1735579311540,0.29981,3341.6,3341.5,0.29982]
[1735579315635,0.44,3341.7,3341.4,3.2078]
[1735579315842,0.29982,3341.5,3341.4,3.50762]
[1735579316451,0.29982,3341.6,3341.5,0.29981]
[1735579317358,0.7398,3341.7,3341.6,0.29981]
[1735579318658,0.4161,3341.8,3341.4,4.4718]
[1735579318856,0.71589,3341.8,3341.7,0.2998]
[1735579319258,10.88999777,3342.7,3341.6,0.74952]
[1735579319460,0.29976,3342.2,3342.1,0.29975]
[1735579319757,0.4504,3342.4,3342.0,3.2078]
[1735579320055,0.29975,3342.3,3342.2,0.29975]
[1735579320261,0.4504,3342.4,3342.3,0.29974]
[1735579321054,3.50751,3342.7,3342.6,0.29972]
[1735579321557,0.8998,3342.9,3342.3,0.4524]
[1735579321558,0.4535,3342.9,3342.8,0.2997]
[1735579321762,5.11128811,3343.3,3342.8,3.2078]
[1735579322058,5.41094811,3343.3,3343.2,0.29966]
[1735579322255,0.75386,3343.3,3343.2,0.29966]
[1735579322453,0.74922,3343.0,3342.0,3.2078]
[1735579322659,0.29976,3342.1,3342.0,3.2078]
[1735579322854,2.27582966,3342.5,3342.0,3.2078]
[1735579323054,0.29975,3342.2,3342.1,0.29976]
[1735579323256,0.4504,3342.3,3342.0,3.50757]
[1735579323257,0.29976,3342.1,3342.0,3.50757]
[1735579324053,0.4504,3342.3,3342.1,0.29975]
[1735579324054,0.29976,3342.2,3342.1,0.29975]
[1735579324265,0.4504,3342.3,3342.2,0.29975]
[1735579324560,0.75014,3342.3,3342.2,0.29975]
[1735579324962,0.4504,3342.3,3342.2,0.29975]
[1735579325657,0.4504,3342.3,3342.1,1.264]
[1735579325658,0.29975,3342.2,3342.1,1.264]
[1735579325855,0.29975,3342.2,3342.1,1.56376]
[1735579326261,0.29975,3342.2,3342.1,1.264]
[1735579326756,0.29976,3342.1,3342.0,3.2078]
[1735579326961,3.02958966,3342.1,3342.0,3.2078]
[1735579327561,0.454,3342.1,3342.0,3.50757]
[1735579328063,0.75376,3342.1,3342.0,3.2078]
[1735579328258,0.75376,3342.1,3342.0,3.50757]
[1735579328456,0.75376,3342.1,3342.0,3.2078]
[1735579329757,0.75376,3342.1,3342.0,3.50757]
[1735579332465,0.454,3342.1,3342.0,3.50757]
[1735579332664,0.4504,3342.3,3342.0,3.50757]
[1735579332665,0.4504,3342.3,3342.2,0.29975]
[1735579332864,0.29973,3342.5,3342.0,3.2078]
[1735579332865,0.4462,3342.6,3342.5,0.29973]
[1735579333064,4.65708811,3342.7,3342.6,0.29972]
[1735579333467,0.4252,3342.8,3342.7,0.29971]
[1735579333768,0.29969,3343.0,3342.9,0.29969]
[1735579333965,5.08228811,3343.1,3343.0,0.29968]
[1735579333966,5.38196811,3343.1,3343.0,0.29968]
[1735579334367,4.65708811,3343.1,3343.0,0.29968]
[1735579334568,4.65708811,3343.5,3342.9,3.2078]
[1735579334863,4.65708811,3343.5,3343.4,3.50744]
[1735579335471,4.65708811,3343.5,3343.4,11.21536966]
[1735579335770,2.85416811,3343.5,3343.4,11.21536966]
[1735579336172,0.4423,3344.4,3343.4,51.71572966]
[1735579336365,0.4423,3344.4,3344.3,3.50736]
[1735579337066,5.87674717,3344.5,3344.3,5.48362966]
[1735579337271,5.87674717,3344.5,3344.4,0.29956]
[1735579337968,8.97004603,3345.1,3345.0,0.2995]
[1735579337969,0.4431,3345.1,3345.0,0.2995]
[1735579338168,0.4431,3345.1,3344.9,3.2078]
[1735579338358,0.4431,3345.1,3345.0,0.2995]
[1735579338563,0.4431,3345.1,3344.9,3.2078]
[1735579338564,0.7426,3345.1,3344.9,3.5073]
[1735579338768,0.4431,3345.1,3344.9,3.2078]
[1735579338963,0.74259,3345.1,3345.0,0.2995]
[1735579339176,0.4431,3345.1,3344.9,3.2078]
[1735579339475,0.7426,3345.1,3344.9,3.5073]
[1735579339668,0.7426,3345.1,3345.0,0.2995]
[1735579339868,0.7426,3345.1,3344.9,3.5073]
[1735579340066,0.7426,3345.1,3345.0,0.2995]
[1735579340572,0.2995,3345.0,3344.9,3.50731]
[1735579340877,0.4431,3345.1,3344.5,3.2078]
[1735579341171,0.4431,3345.1,3345.0,0.2995]
[1735579342069,0.29943,3345.8,3344.9,5.48362966]
[1735579342371,0.43,3345.8,3345.3,3.2078]
[1735579342576,0.43,3345.8,3345.7,0.29944]
[1735579343569,0.43,3345.8,3345.7,3.50724]
[1735579344371,2.72672966,3346.6,3345.7,3.2078]
[1735579344577,0.4463,3346.5,3346.4,0.29938]
[1735579344977,0.74567,3346.5,3346.3,0.29938]
[1735579345282,0.2994,3346.2,3346.0,0.29941]
[1735579345479,0.2994,3346.2,3345.7,3.2078]
[1735579345780,0.2994,3346.2,3346.0,0.29941]
[1735579346280,0.2994,3346.2,3346.1,0.2994]
[1735579346577,0.74567,3346.5,3346.3,0.29938]
[1735579346783,0.74567,3346.5,3345.7,3.2078]
[1735579346784,0.4463,3346.5,3345.7,3.2078]
[1735579347079,0.4463,3346.5,3346.4,0.29938]
[1735579347281,0.29938,3346.4,3346.2,0.29939]
[1735579347485,0.74567,3346.5,3346.3,0.29939]
[1735579347675,0.74567,3346.5,3346.3,0.29938]
[1735579347676,0.29938,3346.4,3346.3,0.29938]
[1735579347980,0.74567,3346.5,3346.4,0.29938]
[1735579348181,0.4463,3346.5,3346.4,0.29938]
[1735579351271,0.4463,3346.5,3346.1,3.2078]
[1735579351779,0.29939,3346.2,3346.1,1.1381]
[1735579351980,0.29943,3345.8,3345.7,3.50723]
[1735579352377,3.67008067,3346.4,3345.7,3.50723]
[1735579352678,0.29943,3345.9,3345.8,0.29943]
[1735579353077,0.29935,3346.8,3346.3,0.29939]
[1735579353276,0.30452639,3346.9,3346.8,0.29934]
[1735579353479,0.00518639,3346.9,3346.4,1.263]
[1735579353674,0.00518639,3346.9,3346.8,0.29934]
[1735579353879,0.29934,3346.8,3346.5,0.29936]
[1735579354081,1.34441594,3347.5,3346.8,0.29934]
[1735579354278,1.34441594,3347.5,3347.3,0.29929]
[1735579354484,1.34441594,3347.5,3346.7,3.2078]
[1735579354485,1.04513594,3347.5,3346.7,3.2078]
[1735579354784,1.04513594,3347.5,3346.8,0.74836]
[1735579354982,1.04513594,3347.5,3347.4,0.29929]
[1735579355177,1.04513594,3347.5,3347.1,3.2078]
[1735579355384,1.34441594,3347.5,3347.4,0.29929]
[1735579355587,1.04513594,3347.5,3347.4,0.29929]
[1735579357279,1.04513594,3347.5,3347.1,3.2078]
[1735579357482,0.2993,3347.3,3347.2,0.2993]
[1735579357681,0.29929,3347.4,3347.3,0.29929]
[1735579358887,1.04513594,3347.5,3347.1,3.2078]
[1735579359186,0.29929,3347.4,3347.1,3.2078]
[1735579359386,0.29929,3347.4,3347.3,0.2993]
[1735579359981,1.04513594,3347.5,3347.4,0.29929]
[1735579360182,1.04513594,3347.5,3347.2,0.2993]
[1735579360482,0.29932,3347.0,3346.9,1.56133]
[1735579360683,0.29932,3347.0,3346.9,0.29933]
[1735579361386,0.29934,3346.8,3346.7,0.29934]
[1735579361590,0.29936,3346.6,3346.5,1.56136]
[1735579361984,0.29935,3346.8,3346.7,0.29934]
[1735579362185,0.29935,3346.7,3346.6,0.29935]
[1735579362586,0.29936,3346.6,3346.5,1.56136]
[1735579362991,0.29935,3346.7,3346.6,0.29936]
[1735579363393,0.8947,3346.9,3346.2,4.4698]
[1735579363589,0.8947,3346.9,3346.5,0.29936]
[1735579363590,0.29936,3346.6,3346.5,0.29936]
[1735579363993,0.8947,3346.9,3346.2,4.4698]
[1735579364389,0.29939,3346.3,3346.2,3.2078]
[1735579364895,0.29939,3346.3,3346.2,3.50719]
[1735579365290,0.29939,3346.3,3346.2,3.2078]
[1735579365682,3.9562,3346.6,3345.7,40.8]
[1735579365888,0.74843,3346.5,3345.7,40.8]
[1735579366085,3.2078,3346.6,3345.7,43.72162067]
[1735579366391,0.29935,3346.7,3346.6,0.29935]
[1735579366989,0.4593,3346.9,3346.8,0.29934]
[1735579367194,0.4217,3347.4,3346.5,2.92162067]
[1735579367492,0.4217,3347.4,3347.3,0.2993]
[1735579367493,0.4504,3347.4,3347.3,0.2993]
[1735579367695,0.4504,3347.4,3347.3,41.0993]
[1735579367892,4.25293594,3347.5,3347.4,0.29929]
[1735579368696,4.25293594,3347.5,3347.2,1.262]
[1735579368893,4.25293594,3347.5,3347.4,0.29929]
[1735579369198,1.04513594,3347.5,3347.4,0.29929]
[1735579369796,1.34441594,3347.5,3347.4,0.29929]
[1735579370191,1.04513594,3347.5,3347.4,0.29929]
[1735579371495,1.04513594,3347.5,3347.0,4.3905]
[1735579371496,1.04513594,3347.5,3347.0,3.2078]
[1735579371695,1.04513594,3347.5,3347.1,1.262]
[1735579371897,0.2993,3347.3,3347.2,0.2993]
[1735579373093,0.4575,3347.4,3347.0,4.4698]
[1735579373289,1.04513594,3347.5,3347.4,0.29929]
[1735579374596,1.04513594,3347.5,3347.4,3.50709]
[1735579375200,1.04513594,3347.5,3347.4,44.30709]
[1735579376895,1.04513594,3347.5,3347.4,49.30709]
[1735579377093,0.29918,3348.6,3347.8,1.79553]
[1735579377291,0.29918,3348.6,3347.4,49.4672]
[1735579377292,3.2078,3348.7,3348.6,0.29918]
[1735579378297,3.81072067,3349.5,3348.6,0.29918]
[1735579378298,3.2078,3349.4,3348.7,0.74793]
[1735579378604,3.50686,3350.0,3349.7,0.29907]
[1735579378790,3.2078,3350.0,3349.6,1.286]
[1735579378996,3.2078,3350.0,3349.8,0.29907]
[1735579379192,7.84306133,3350.4,3349.6,1.286]
[1735579379497,7.84306133,3350.4,3349.9,0.29906]
[1735579379695,0.29905,3350.2,3349.9,0.29906]
[1735579379897,0.29907,3349.9,3349.7,0.29908]
[1735579380103,6.12942067,3350.4,3349.7,0.29908]
[1735579380294,0.29906,3349.9,3349.6,1.286]
[1735579380600,0.29906,3349.9,3349.7,41.09908]
[1735579380798,0.29906,3349.9,3349.7,0.29908]
[1735579380995,0.29906,3349.9,3349.6,1.286]
[1735579381203,6.12942067,3350.4,3349.6,42.38508]
[1735579381404,0.29906,3350.0,3349.8,0.29907]
[1735579381601,6.12942067,3350.4,3349.7,0.29908]
[1735579381602,0.29907,3349.9,3349.7,0.29908]
[1735579382000,0.29903,3350.3,3349.6,1.286]
[1735579382202,6.12942067,3350.4,3350.0,0.29905]
[1735579382402,0.29908,3349.8,3349.7,0.29908]
[1735579382707,0.29908,3349.7,3349.6,1.286]
[1735579383805,0.74758,3350.3,3349.6,1.286]
[1735579383806,0.29904,3350.2,3349.8,0.29907]
[1735579384105,0.29906,3349.9,3349.8,0.29907]
[1735579384809,0.29906,3350.0,3349.9,0.29906]
[1735579385109,0.29907,3349.9,3349.8,0.29907]
[1735579385509,0.29904,3350.2,3350.1,0.29904]
[1735579386012,0.29905,3350.1,3350.0,0.29905]
[1735579386307,0.29905,3350.1,3349.6,1.286]
[1735579386607,0.29904,3350.2,3350.1,0.29904]
[1735579386810,0.29905,3350.1,3350.0,0.29905]
[1735579387717,0.29904,3350.2,3350.1,0.29904]
[1735579387912,0.29905,3350.1,3350.0,0.29905]
[1735579388412,3.2078,3350.4,3350.0,0.29905]
[1735579388612,3.2078,3350.4,3349.6,1.286]
[1735579388811,0.29903,3350.3,3349.6,1.286]
[1735579389004,0.29903,3350.3,3350.2,0.29904]
[1735579389199,3.2078,3350.4,3349.7,2.92162067]
[1735579389500,3.50682,3350.4,3350.3,0.29903]
[1735579389810,3.2078,3350.4,3349.8,41.54769]
[1735579389999,0.29903,3350.3,3350.2,0.29903]
[1735579390312,0.29902,3350.5,3350.4,0.29901]
[1735579390609,0.4233,3350.6,3349.9,3.2078]
[1735579390806,0.29905,3350.1,3350.0,0.29905]
[1735579391212,0.29901,3350.5,3350.3,0.29902]
[1735579391512,0.29904,3350.2,3350.1,0.29904]
[1735579391712,0.4233,3350.6,3350.2,0.29903]
[1735579391713,0.29903,3350.3,3350.2,0.29903]
[1735579392110,0.29904,3350.2,3350.1,0.29904]
[1735579392311,0.29903,3350.3,3350.2,0.29903]
[1735579392513,0.29904,3350.2,3350.1,0.29904]
[1735579392815,0.29905,3350.0,3349.9,3.2078]
[1735579393208,0.29905,3350.0,3349.9,3.50686]
[1735579393408,0.29905,3350.1,3350.0,0.29905]
[1735579393816,0.4478,3350.3,3349.9,3.2078]
[1735579394016,0.29905,3350.0,3349.9,3.50686]
[1735579394513,0.4302,3350.2,3349.9,3.2078]
[1735579394817,0.29905,3350.1,3350.0,0.29905]
[1735579395009,0.29905,3350.0,3349.9,3.2078]
[1735579395807,0.29905,3350.0,3349.9,3.50686]
[1735579396015,0.4302,3350.2,3349.9,3.2078]
[1735579396210,0.4233,3350.6,3349.9,3.2078]
[1735579396407,0.4233,3350.6,3350.2,0.29903]
[1735579396408,0.29903,3350.3,3350.2,0.29903]
[1735579397615,0.29903,3350.4,3350.3,0.29902]
[1735579398919,0.4233,3350.6,3349.9,3.2078]
[1735579399118,0.29904,3350.2,3350.1,0.29903]
[1735579399419,0.29904,3350.3,3350.2,0.29903]
[1735579400011,1.17082,3350.6,3350.1,0.29904]
[1735579400012,0.29905,3350.2,3350.1,0.29904]
[1735579400222,0.74753,3350.5,3349.9,3.2078]
[1735579400518,0.74753,3350.5,3349.5,3.50689]
[1735579400519,0.2991,3349.6,3349.5,3.50689]
[1735579400718,0.74767,3349.9,3349.3,0.29911]
[1735579400923,0.29911,3349.4,3349.3,0.29911]
[1735579401114,3.95553,3349.6,3349.1,3.2078]
[1735579401424,0.29913,3349.2,3349.1,3.50694]
[1735579401615,0.29913,3349.2,3349.1,44.30694]
[1735579401812,0.29913,3349.2,3349.1,0.29914]
[1735579402015,0.4396,3349.3,3349.0,3.2078]
[1735579402318,0.4396,3349.3,3349.2,0.29913]
[1735579403017,0.4238,3349.8,3349.3,0.74779]
[1735579403224,3.2078,3349.9,3349.4,5.47127077]
[1735579403421,1.285,3351.2,3349.4,5.47127077]
[1735579403422,0.4246,3350.3,3349.8,3.2078]
[1735579403621,0.4246,3350.3,3350.2,0.29904]
[1735579403918,0.4246,3350.3,3349.9,1.285]
[1735579404121,0.4222,3350.5,3350.4,0.29902]
[1735579404921,0.4222,3350.5,3350.4,41.09902]
[1735579406124,0.4222,3350.5,3350.4,0.29902]
[1735579406321,0.72121,3350.5,3350.4,0.29902]
[1735579406719,0.72121,3350.5,3350.2,3.2078]
[1735579406720,0.29903,3350.3,3349.9,0.29906]
[1735579406914,3.2078,3350.4,3349.8,3.2078]
[1735579407227,3.2078,3350.4,3350.0,0.29905]
[1735579407228,0.29905,3350.1,3350.0,0.29905]
[1735579408012,3.2078,3350.4,3349.9,0.29906]
[1735579408013,0.29906,3350.0,3349.9,0.29906]
[1735579408615,0.29903,3350.3,3349.9,0.29906]
[1735579408822,0.29906,3349.9,3349.8,3.50687]
[1735579409023,0.29906,3349.9,3349.8,3.2078]
[1735579409822,0.29906,3349.9,3349.8,3.50687]
[1735579411019,0.29906,3349.9,3349.8,3.88353013]
[1735579411215,0.29906,3349.9,3349.8,3.89554859]
[1735579411718,0.29906,3349.9,3349.8,3.59647859]
[1735579411920,0.29906,3349.9,3349.8,3.89554859]
[1735579412115,3.50682,3350.4,3350.3,0.29903]
[1735579412718,3.50682,3350.4,3350.3,41.09903]
[1735579413229,0.29902,3350.4,3350.3,0.68770859]
[1735579413726,0.29902,3350.4,3350.3,0.68399385]
[1735579413915,0.29902,3350.4,3350.3,0.38867859]
[1735579414426,2.9140172,3350.7,3350.3,0.38867859]
[1735579414725,3.2078,3350.9,3350.3,0.68769859]
[1735579414726,0.29902,3350.4,3350.3,0.68769859]
[1735579414925,0.29902,3350.4,3350.3,0.68770859]
[1735579415124,0.29902,3350.4,3350.3,0.38867859]
[1735579415530,0.71622,3350.4,3350.3,0.38867859]
[1735579416926,3.2078,3350.9,3350.3,0.38867859]
[1735579417132,3.50678,3350.9,3350.8,0.29898]
[1735579417527,3.94008,3350.9,3350.8,0.71149053]
[1735579417828,3.94008,3350.9,3350.8,0.41251053]
[1735579418034,0.73228,3350.9,3350.8,0.41251053]
[1735579418526,0.73228,3350.9,3350.8,0.71149053]
[1735579419034,0.73228,3350.9,3350.8,0.41251053]
[1735579419530,0.73227,3350.9,3350.8,0.4176438]
[1735579419925,0.29897,3350.9,3350.8,0.4176438]
[1735579420124,0.29896,3351.2,3351.1,0.29895]
[1735579420430,0.29897,3350.9,3350.8,0.7166238]
[1735579420628,0.4333,3351.3,3350.8,0.7166238]
[1735579420820,0.29896,3351.1,3351.0,0.29896]
[1735579421332,0.29897,3351.0,3350.9,0.29897]
[1735579421531,0.29897,3351.0,3350.9,1.1348138]
[1735579421723,0.29897,3351.0,3350.9,0.7166138]
[1735579421921,0.29897,3351.0,3350.9,0.4176438]
[1735579422121,0.29897,3351.0,3350.9,0.7166138]
[1735579423036,0.29897,3351.0,3350.9,0.4176438]
[1735579423334,0.29897,3351.0,3350.9,0.7166138]
[1735579423633,0.73474,3351.3,3351.2,0.29895]
[1735579423835,5.38629372,3351.3,3351.2,0.29895]
[1735579424026,5.08735372,3351.3,3350.9,0.4176438]
[1735579424232,0.29897,3351.0,3350.9,0.4176438]
[1735579425429,4.65155372,3351.2,3350.9,0.42959981]
[1735579425629,0.29897,3351.0,3350.9,0.42959981]
[1735579425829,4.65155372,3351.2,3350.9,0.44155582]
[1735579426034,0.29897,3351.0,3350.9,0.44155582]
[1735579426433,0.29897,3351.0,3350.9,0.45351183]
[1735579426830,0.29897,3351.0,3350.0,3.2078]
[1735579426831,8.2078,3351.0,3350.0,3.2078]
[1735579427035,0.74755,3350.4,3349.6,3.2078]
[1735579427239,0.4277,3350.3,3349.6,3.2078]
[1735579427428,0.72674,3350.3,3350.2,0.29904]
[1735579427735,0.72674,3350.3,3350.1,0.29904]
[1735579427736,0.29905,3350.2,3350.1,0.29904]
[1735579428127,2.26296922,3350.7,3349.7,41.54771]
[1735579428324,3.2078,3350.5,3349.7,40.8]
[1735579428539,0.29907,3349.9,3349.8,0.29906]
[1735579428730,0.29907,3349.8,3349.7,40.8]
[1735579429040,6.16788141,3349.8,3349.7,41.09908]
[1735579429339,5.86881141,3349.8,3349.7,41.09908]
[1735579429537,5.86881141,3349.8,3349.7,42.38108]
[1735579429940,6.16788141,3349.8,3349.7,42.38108]
[1735579430139,6.97733058,3350.1,3349.7,42.082]
[1735579430338,0.29906,3349.9,3349.8,0.29907]